[Event "Late-Titled-Tuesday-Blitz-December-26-2023"]
[Site "Chess.com"]
[Date "2023.12.26"]
[Round "11"]
[White "Durarbayli"]
[Black "vugarrasulov"]
[Result "1/2-1/2"]
[WhiteElo "2936"]
[BlackElo "2950"]
[TimeControl "180+1"]
[EndTime "16:04:39 PST"]
[Termination "Game drawn - insufficient material"]

1. e4 {[%clk 0:02:59.5]} 1... e5 {[%clk 0:03:00.2]} 2. Nf3 {[%clk 0:02:59.7]}
2... Nc6 {[%clk 0:03:00.9]} 3. Bb5 {[%clk 0:02:59.9]} 3... d6 {[%clk 0:02:59.1]}
4. d4 {[%clk 0:02:48.8]} 4... Bd7 {[%clk 0:02:58.6]} 5. O-O {[%clk 0:02:44.2]}
5... Nf6 {[%clk 0:02:53.7]} 6. Re1 {[%clk 0:02:40.4]} 6... g6 {[%clk 0:02:51.9]}
7. Nc3 {[%clk 0:02:38.5]} 7... exd4 {[%clk 0:02:42.1]} 8. Nxd4 {[%clk
0:02:39.4]} 8... Bg7 {[%clk 0:02:41.8]} 9. Nxc6 {[%clk 0:02:25.4]} 9... Bxc6
{[%clk 0:02:39.2]} 10. e5 {[%clk 0:02:19.4]} 10... dxe5 {[%clk 0:02:35.5]} 11.
Bxc6+ {[%clk 0:02:12.1]} 11... bxc6 {[%clk 0:02:35.5]} 12. Rxe5+ {[%clk
0:02:12.6]} 12... Kf8 {[%clk 0:02:34.9]} 13. Qxd8+ {[%clk 0:01:38.7]} 13... Rxd8
{[%clk 0:02:35.8]} 14. Ra5 {[%clk 0:01:38.7]} 14... Ne4 {[%clk 0:02:24.8]} 15.
Bg5 {[%clk 0:01:29]} 15... Nxg5 {[%clk 0:02:09.1]} 16. Rxg5 {[%clk 0:01:29.9]}
16... f5 {[%clk 0:02:03.9]} 17. Rg3 {[%clk 0:01:30.5]} 17... Rd2 {[%clk
0:02:01.6]} 18. Rc1 {[%clk 0:01:08.1]} 18... Bd4 {[%clk 0:01:57.3]} 19. Rf3
{[%clk 0:00:54.2]} 19... Kg7 {[%clk 0:01:56.8]} 20. Kf1 {[%clk 0:00:42.6]} 20...
Re8 {[%clk 0:01:41.5]} 21. Nd1 {[%clk 0:00:28.4]} 21... Ree2 {[%clk 0:01:05.4]}
22. Rd3 {[%clk 0:00:27.8]} 22... Bb6 {[%clk 0:00:52.1]} 23. Rxd2 {[%clk
0:00:26.7]} 23... Rxd2 {[%clk 0:00:53]} 24. Ke1 {[%clk 0:00:27.2]} 24... Rd5
{[%clk 0:00:49.8]} 25. c3 {[%clk 0:00:25.2]} 25... f4 {[%clk 0:00:48.3]} 26. Rc2
{[%clk 0:00:22.3]} 26... Kf6 {[%clk 0:00:48.2]} 27. Re2 {[%clk 0:00:21.6]} 27...
g5 {[%clk 0:00:47.4]} 28. h3 {[%clk 0:00:21.9]} 28... h5 {[%clk 0:00:47.3]} 29.
Re8 {[%clk 0:00:20.4]} 29... g4 {[%clk 0:00:43.9]} 30. hxg4 {[%clk 0:00:21.3]}
30... hxg4 {[%clk 0:00:44.8]} 31. Ke2 {[%clk 0:00:21.9]} 31... f3+ {[%clk
0:00:38.2]} 32. gxf3 {[%clk 0:00:22.8]} 32... gxf3+ {[%clk 0:00:39.1]} 33. Ke1
{[%clk 0:00:23.5]} 33... Re5+ {[%clk 0:00:37.5]} 34. Rxe5 {[%clk 0:00:23.1]}
34... Kxe5 {[%clk 0:00:38.4]} 35. b3 {[%clk 0:00:20.8]} 35... Ke4 {[%clk
0:00:28.7]} 36. Nb2 {[%clk 0:00:19.8]} 36... Bc5 {[%clk 0:00:28.2]} 37. Nc4
{[%clk 0:00:14.9]} 37... Be7 {[%clk 0:00:22.4]} 38. Nd2+ {[%clk 0:00:14.1]}
38... Kd3 {[%clk 0:00:21.2]} 39. Nxf3 {[%clk 0:00:14.6]} 39... Kxc3 {[%clk
0:00:21.6]} 40. Ne5 {[%clk 0:00:14.6]} 40... c5 {[%clk 0:00:18]} 41. Nc6 {[%clk
0:00:14.7]} 41... Bd6 {[%clk 0:00:12.8]} 42. Nxa7 {[%clk 0:00:14.9]} 42... Kb2
{[%clk 0:00:13.4]} 43. Kd2 {[%clk 0:00:14.4]} 43... Kxa2 {[%clk 0:00:11.3]} 44.
Kc2 {[%clk 0:00:14]} 44... Ka3 {[%clk 0:00:11.7]} 45. Kc3 {[%clk 0:00:13.9]}
45... Be5+ {[%clk 0:00:11]} 46. Kc4 {[%clk 0:00:14]} 46... Kb2 {[%clk
0:00:09.3]} 47. Nc6 {[%clk 0:00:12]} 47... Bd6 {[%clk 0:00:08.9]} 48. Nd8 {[%clk
0:00:12.6]} 48... Kc2 {[%clk 0:00:08.4]} 49. Ne6 {[%clk 0:00:13.2]} 49... Kd2
{[%clk 0:00:05.8]} 50. f4 {[%clk 0:00:13.8]} 50... Ke3 {[%clk 0:00:05.7]} 51. f5
{[%clk 0:00:14.5]} 51... Ke4 {[%clk 0:00:05.8]} 52. f6 {[%clk 0:00:09.9]} 52...
Ke5 {[%clk 0:00:06.3]} 53. Nxc7 {[%clk 0:00:08.4]} 53... Kxf6 {[%clk 0:00:05]}
54. Na6 {[%clk 0:00:07.9]} 54... Ke7 {[%clk 0:00:04.2]} 55. Kd5 {[%clk
0:00:07.7]} 55... Bg3 {[%clk 0:00:04.1]} 56. Kc6 {[%clk 0:00:07.3]} 56... Kd8
{[%clk 0:00:03.9]} 57. Nxc5 {[%clk 0:00:07.6]} 57... Kc8 {[%clk 0:00:04.3]} 58.
Nd7 {[%clk 0:00:08]} 58... Be1 {[%clk 0:00:04.4]} 59. Nb6+ {[%clk 0:00:08.9]}
59... Kb8 {[%clk 0:00:04.9]} 60. Nd5 {[%clk 0:00:08.1]} 60... Bd2 {[%clk
0:00:04.6]} 61. Nc7 {[%clk 0:00:07.5]} 61... Be1 {[%clk 0:00:04.3]} 62. Nb5
{[%clk 0:00:06.4]} 62... Bd2 {[%clk 0:00:04.2]} 63. Nd6 {[%clk 0:00:06.5]} 63...
Be1 {[%clk 0:00:04.7]} 64. Ne4 {[%clk 0:00:07.4]} 64... Ba5 {[%clk 0:00:04.3]}
65. Kb5 {[%clk 0:00:08.3]} 65... Be1 {[%clk 0:00:04.8]} 66. Ka6 {[%clk
0:00:08.1]} 66... Kc7 {[%clk 0:00:05.3]} 67. Kb5 {[%clk 0:00:08.1]} 67... Kb7
{[%clk 0:00:05.3]} 68. Nc5+ {[%clk 0:00:06.5]} 68... Kc7 {[%clk 0:00:05.8]} 69.
Nd3 {[%clk 0:00:07.4]} 69... Bd2 {[%clk 0:00:05.8]} 70. Kc4 {[%clk 0:00:08.3]}
70... Kb6 {[%clk 0:00:05.7]} 71. Nb4 {[%clk 0:00:09.2]} 71... Be1 {[%clk
0:00:04.9]} 72. Nd5+ {[%clk 0:00:10.1]} 72... Kc6 {[%clk 0:00:05.5]} 73. Kd3
{[%clk 0:00:10.9]} 73... Kxd5 {[%clk 0:00:05.6]} 74. b4 {[%clk 0:00:11]} 74...
Bxb4 {[%clk 0:00:06.2]} 1/2-1/2

[Event "Late-Titled-Tuesday-Blitz-December-26-2023"]
[Site "Chess.com"]
[Date "2023.12.26"]
[Round "11"]
[White "zsoltkorpics"]
[Black "IMRosen"]
[Result "0-1"]
[WhiteElo "2496"]
[BlackElo "2673"]
[TimeControl "180+1"]
[EndTime "16:04:40 PST"]
[Termination "IMRosen won by checkmate"]

1. e4 {[%clk 0:03:00.9]} 1... e5 {[%clk 0:02:59.3]} 2. Nf3 {[%clk 0:03:00.9]}
2... Nf6 {[%clk 0:02:59.2]} 3. Nxe5 {[%clk 0:02:57.6]} 3... Nc6 {[%clk
0:02:58.8]} 4. Nxc6 {[%clk 0:02:54.7]} 4... dxc6 {[%clk 0:02:59.7]} 5. d3 {[%clk
0:02:52.2]} 5... Bc5 {[%clk 0:02:59.3]} 6. c3 {[%clk 0:02:47.3]} 6... Nxe4
{[%clk 0:02:54.6]} 7. Qe2 {[%clk 0:02:47.2]} 7... Bxf2+ {[%clk 0:02:54]} 8. Kd1
{[%clk 0:02:47.5]} 8... f5 {[%clk 0:02:53.1]} 9. Kc2 {[%clk 0:02:45.8]} 9... O-O
{[%clk 0:02:53.7]} 10. dxe4 {[%clk 0:02:41.7]} 10... fxe4 {[%clk 0:02:54.6]} 11.
Be3 {[%clk 0:02:38.5]} 11... Qd3+ {[%clk 0:02:22.1]} 12. Qxd3 {[%clk 0:02:35.9]}
12... exd3+ {[%clk 0:02:23]} 13. Kxd3 {[%clk 0:02:36.2]} 13... Bf5+ {[%clk
0:02:17.9]} 14. Ke2 {[%clk 0:02:35.7]} 14... Rae8 {[%clk 0:02:06]} 15. Kxf2
{[%clk 0:02:35.4]} 15... Bd3+ {[%clk 0:01:21.3]} 16. Ke1 {[%clk 0:02:18.9]}
16... Bxf1 {[%clk 0:01:11.9]} 17. Kd2 {[%clk 0:01:12.9]} 17... Bxg2 {[%clk
0:00:59.7]} 18. Rg1 {[%clk 0:01:10.8]} 18... Bf3 {[%clk 0:00:54.2]} 19. Na3
{[%clk 0:01:07.2]} 19... Re4 {[%clk 0:00:45.3]} 20. Rae1 {[%clk 0:00:52]} 20...
Rd8+ {[%clk 0:00:45.4]} 21. Kc1 {[%clk 0:00:48.8]} 21... Rde8 {[%clk 0:00:37.8]}
22. Nc2 {[%clk 0:00:46.6]} 22... Bh5 {[%clk 0:00:32.9]} 23. Rg3 {[%clk
0:00:38.3]} 23... Bg6 {[%clk 0:00:28.9]} 24. Bd2 {[%clk 0:00:24.6]} 24... Re2
{[%clk 0:00:21.2]} 25. Rxe2 {[%clk 0:00:18.9]} 25... Rxe2 {[%clk 0:00:22.1]} 26.
h3 {[%clk 0:00:18.9]} 26... Rh2 {[%clk 0:00:17.5]} 27. Nd4 {[%clk 0:00:18.4]}
27... Rh1+ {[%clk 0:00:09.9]} 28. Be1 {[%clk 0:00:15.7]} 28... Rxe1+ {[%clk
0:00:09.3]} 29. Kd2 {[%clk 0:00:15.8]} 29... Re8 {[%clk 0:00:08.8]} 30. Nb3
{[%clk 0:00:11.8]} 30... b6 {[%clk 0:00:08.2]} 31. Nd4 {[%clk 0:00:11.7]} 31...
c5 {[%clk 0:00:08.7]} 32. Ne2 {[%clk 0:00:09.9]} 32... Rd8+ {[%clk 0:00:07.7]}
33. Ke1 {[%clk 0:00:08.4]} 33... Bf5 {[%clk 0:00:05.1]} 34. Rf3 {[%clk
0:00:06.8]} 34... g6 {[%clk 0:00:05.7]} 35. Rg3 {[%clk 0:00:05.6]} 35... Re8
{[%clk 0:00:06.1]} 36. Kf2 {[%clk 0:00:05.6]} 36... Be6 {[%clk 0:00:06.3]} 37.
Nf4 {[%clk 0:00:05.7]} 37... Bxa2 {[%clk 0:00:06.2]} 38. h4 {[%clk 0:00:05.2]}
38... Bf7 {[%clk 0:00:05.6]} 39. h5 {[%clk 0:00:05.3]} 39... Re5 {[%clk
0:00:06.1]} 40. hxg6 {[%clk 0:00:05.4]} 40... hxg6 {[%clk 0:00:05.5]} 41. Nd3
{[%clk 0:00:05.9]} 41... Rf5+ {[%clk 0:00:04.5]} 42. Ke3 {[%clk 0:00:05.7]}
42... Kf8 {[%clk 0:00:05.4]} 43. Nf4 {[%clk 0:00:05.7]} 43... Ke7 {[%clk
0:00:05.3]} 44. Nxg6+ {[%clk 0:00:04.6]} 44... Bxg6 {[%clk 0:00:06.2]} 45. Rxg6
{[%clk 0:00:05]} 45... Rd5 {[%clk 0:00:05.5]} 46. Rg2 {[%clk 0:00:04.4]} 46...
Kd7 {[%clk 0:00:05.7]} 47. Ke4 {[%clk 0:00:04.9]} 47... Rd6 {[%clk 0:00:06.2]}
48. Ke5 {[%clk 0:00:04.6]} 48... Kc8 {[%clk 0:00:06.9]} 49. Rf2 {[%clk 0:00:03]}
49... Kb7 {[%clk 0:00:07.5]} 50. Rc2 {[%clk 0:00:03.4]} 50... a6 {[%clk
0:00:08.2]} 51. Ke4 {[%clk 0:00:04]} 51... Kc6 {[%clk 0:00:08.9]} 52. Ke5 {[%clk
0:00:04.4]} 52... Rd1 {[%clk 0:00:09.6]} 53. c4 {[%clk 0:00:04.4]} 53... Re1+
{[%clk 0:00:10]} 54. Kf4 {[%clk 0:00:04.3]} 54... Re8 {[%clk 0:00:10.7]} 55. Kf3
{[%clk 0:00:04.6]} 55... b5 {[%clk 0:00:11.3]} 56. Kf2 {[%clk 0:00:03.7]} 56...
Kb6 {[%clk 0:00:09.7]} 57. b3 {[%clk 0:00:03.3]} 57... c6 {[%clk 0:00:06.8]} 58.
Ra2 {[%clk 0:00:02.9]} 58... a5 {[%clk 0:00:06.9]} 59. Rc2 {[%clk 0:00:02]}
59... a4 {[%clk 0:00:05.7]} 60. bxa4 {[%clk 0:00:02.4]} 60... b4 {[%clk
0:00:06.4]} 61. Rb2 {[%clk 0:00:02]} 61... Ka5 {[%clk 0:00:06.6]} 62. Kf3 {[%clk
0:00:01.4]} 62... Kxa4 {[%clk 0:00:06.6]} 63. Re2 {[%clk 0:00:01.4]} 63... Rxe2
{[%clk 0:00:05.7]} 64. Kxe2 {[%clk 0:00:02.3]} 64... b3 {[%clk 0:00:05.3]} 65.
Ke3 {[%clk 0:00:02.5]} 65... b2 {[%clk 0:00:05.5]} 66. Ke4 {[%clk 0:00:02.2]}
66... b1=Q+ {[%clk 0:00:06]} 67. Ke5 {[%clk 0:00:03.1]} 67... Qd1 {[%clk
0:00:06.4]} 68. Kf6 {[%clk 0:00:01.9]} 68... Kb4 {[%clk 0:00:07.3]} 69. Kg7
{[%clk 0:00:02.2]} 69... Kxc4 {[%clk 0:00:08.2]} 70. Kh8 {[%clk 0:00:02.8]}
70... Kb5 {[%clk 0:00:09.1]} 71. Kg7 {[%clk 0:00:03.6]} 71... c4 {[%clk
0:00:10]} 72. Kh8 {[%clk 0:00:04.5]} 72... c3 {[%clk 0:00:10.9]} 73. Kg7 {[%clk
0:00:05.4]} 73... c2 {[%clk 0:00:11.8]} 74. Kh8 {[%clk 0:00:06.3]} 74... c5
{[%clk 0:00:12.7]} 75. Kg7 {[%clk 0:00:07.2]} 75... c4 {[%clk 0:00:13.6]} 76.
Kh8 {[%clk 0:00:07.8]} 76... c3 {[%clk 0:00:14.5]} 77. Kg7 {[%clk 0:00:08.7]}
77... Qg1+ {[%clk 0:00:14.4]} 78. Kh8 {[%clk 0:00:09.6]} 78... c1=Q {[%clk
0:00:14.1]} 79. Kh7 {[%clk 0:00:09.4]} 79... Qg2 {[%clk 0:00:14.3]} 80. Kh8
{[%clk 0:00:09.8]} 80... Qch1# {[%clk 0:00:14.9]} 0-1

[Event "Late-Titled-Tuesday-Blitz-December-26-2023"]
[Site "Chess.com"]
[Date "2023.12.26"]
[Round "11"]
[White "Fh2411"]
[Black "NovakRatko"]
[Result "1-0"]
[WhiteElo "2534"]
[BlackElo "2431"]
[TimeControl "180+1"]
[EndTime "16:04:42 PST"]
[Termination "Fh2411 won on time"]

1. d4 {[%clk 0:03:00.6]} 1... d5 {[%clk 0:02:59.9]} 2. Nf3 {[%clk 0:02:59.1]}
2... c5 {[%clk 0:03:00.1]} 3. c3 {[%clk 0:02:58.9]} 3... cxd4 {[%clk 0:03:00.2]}
4. cxd4 {[%clk 0:02:59.8]} 4... Nc6 {[%clk 0:03:00.8]} 5. Nc3 {[%clk 0:03:00.4]}
5... f6 {[%clk 0:03:00.8]} 6. Bf4 {[%clk 0:03:01.1]} 6... Bg4 {[%clk 0:03:00.5]}
7. Qb3 {[%clk 0:02:56.1]} 7... Bxf3 {[%clk 0:02:59.8]} 8. exf3 {[%clk
0:02:52.8]} 8... Nxd4 {[%clk 0:03:00.1]} 9. Qa4+ {[%clk 0:02:36.3]} 9... Nc6
{[%clk 0:02:59.7]} 10. Rd1 {[%clk 0:02:35.9]} 10... d4 {[%clk 0:02:56.8]} 11.
Bb5 {[%clk 0:02:33.4]} 11... e5 {[%clk 0:02:50.1]} 12. Bxc6+ {[%clk 0:02:31.5]}
12... bxc6 {[%clk 0:02:48.5]} 13. Qxc6+ {[%clk 0:02:32.4]} 13... Kf7 {[%clk
0:02:48.5]} 14. Qc4+ {[%clk 0:02:31.8]} 14... Kg6 {[%clk 0:02:37]} 15. Bc1
{[%clk 0:02:27.8]} 15... Qc8 {[%clk 0:02:28.6]} 16. Qd3+ {[%clk 0:02:25.3]}
16... Qf5 {[%clk 0:02:28.7]} 17. Ne4 {[%clk 0:02:25.3]} 17... Bb4+ {[%clk
0:02:28.4]} 18. Bd2 {[%clk 0:02:24.8]} 18... Bxd2+ {[%clk 0:02:28.2]} 19. Rxd2
{[%clk 0:02:25.7]} 19... h5 {[%clk 0:02:24.8]} 20. h4 {[%clk 0:01:59.5]} 20...
Kh6 {[%clk 0:02:21.6]} 21. Rc2 {[%clk 0:01:54.8]} 21... Ne7 {[%clk 0:02:18.7]}
22. Qd2+ {[%clk 0:01:46.9]} 22... Kh7 {[%clk 0:02:11.4]} 23. Rc7 {[%clk
0:01:43.4]} 23... Nd5 {[%clk 0:02:07]} 24. Rc5 {[%clk 0:01:35.2]} 24... Rhd8
{[%clk 0:01:32]} 25. O-O {[%clk 0:01:33.3]} 25... Nf4 {[%clk 0:01:18.5]} 26.
Rfc1 {[%clk 0:01:25.4]} 26... d3 {[%clk 0:01:13.9]} 27. Ng3 {[%clk 0:01:18.5]}
27... Qg6 {[%clk 0:01:09.5]} 28. Rc7 {[%clk 0:01:14.3]} 28... a5 {[%clk
0:00:42.2]} 29. b3 {[%clk 0:01:07.1]} 29... a4 {[%clk 0:00:38.9]} 30. b4 {[%clk
0:01:07.4]} 30... Rd4 {[%clk 0:00:38.1]} 31. a3 {[%clk 0:01:04.3]} 31... Ne2+
{[%clk 0:00:27.7]} 32. Nxe2 {[%clk 0:01:02.7]} 32... dxe2 {[%clk 0:00:28.6]} 33.
Qxe2 {[%clk 0:01:03.4]} 33... Rxh4 {[%clk 0:00:29.2]} 34. Rd7 {[%clk 0:00:58.7]}
34... Rd4 {[%clk 0:00:25.6]} 35. Re7 {[%clk 0:00:52.5]} 35... h4 {[%clk
0:00:21.9]} 36. Rcc7 {[%clk 0:00:49.9]} 36... Rg8 {[%clk 0:00:22.2]} 37. Kh2
{[%clk 0:00:39.9]} 37... Rf4 {[%clk 0:00:18]} 38. Qe3 {[%clk 0:00:37]} 38... Qb1
{[%clk 0:00:14.1]} 39. Qa7 {[%clk 0:00:34.2]} 39... Qg6 {[%clk 0:00:13.9]} 40.
b5 {[%clk 0:00:34.7]} 40... Rf5 {[%clk 0:00:14]} 41. Qe3 {[%clk 0:00:33.3]}
41... Rg5 {[%clk 0:00:14]} 42. Qe4 {[%clk 0:00:25]} 42... Rxg2+ {[%clk 0:00:12]}
43. Kh3 {[%clk 0:00:25.5]} 43... Qxe4 {[%clk 0:00:09.9]} 44. fxe4 {[%clk
0:00:25.3]} 44... Rxf2 {[%clk 0:00:10.4]} 45. b6 {[%clk 0:00:26]} 45... Rb2
{[%clk 0:00:10.5]} 46. b7 {[%clk 0:00:26.7]} 46... Kh6 {[%clk 0:00:10.3]} 47.
Kxh4 {[%clk 0:00:23.7]} 47... Kg6 {[%clk 0:00:05.7]} 48. Kg4 {[%clk 0:00:23.9]}
48... Rg2+ {[%clk 0:00:05.2]} 49. Kf3 {[%clk 0:00:24]} 49... Rb2 {[%clk
0:00:06]} 50. Ke3 {[%clk 0:00:20.4]} 50... Rb6 {[%clk 0:00:05.9]} 51. Kd3 {[%clk
0:00:20.4]} 51... Kh6 {[%clk 0:00:04.6]} 52. Kc4 {[%clk 0:00:19.2]} 52... g6
{[%clk 0:00:04.8]} 53. Kc5 {[%clk 0:00:17]} 53... Rb3 {[%clk 0:00:05]} 54. Kc6
{[%clk 0:00:17.2]} 54... Rb8 {[%clk 0:00:04.3]} 55. Rc8 {[%clk 0:00:15]} 55...
R8xb7 {[%clk 0:00:01.7]} 56. Rxb7 {[%clk 0:00:13.8]} 56... Rxa3 {[%clk
0:00:02.6]} 57. Rf7 {[%clk 0:00:12]} 57... Kg5 {[%clk 0:00:02]} 58. Rg8 {[%clk
0:00:12.3]} 58... Rc3+ {[%clk 0:00:01.2]} 59. Kb5 {[%clk 0:00:11.6]} 59... Re3
{[%clk 0:00:01.6]} 60. Rfg7 {[%clk 0:00:10.5]} 60... Rxe4 {[%clk 0:00:02]} 61.
Rxg6+ {[%clk 0:00:10.8]} 61... Kf5 {[%clk 0:00:02.9]} 62. Rh6 {[%clk 0:00:11]}
62... Rd4 {[%clk 0:00:01.9]} 63. Rf8 {[%clk 0:00:10.4]} 1-0

[Event "Late-Titled-Tuesday-Blitz-December-26-2023"]
[Site "Chess.com"]
[Date "2023.12.26"]
[Round "11"]
[White "Pertinhez76"]
[Black "cthulhuuu"]
[Result "1-0"]
[WhiteElo "2130"]
[BlackElo "2429"]
[TimeControl "180+1"]
[EndTime "16:04:58 PST"]
[Termination "Pertinhez76 won on time"]

1. d4 {[%clk 0:02:58.8]} 1... Nf6 {[%clk 0:02:59.2]} 2. Nf3 {[%clk 0:02:58.4]}
2... g6 {[%clk 0:02:59.4]} 3. c4 {[%clk 0:02:57.8]} 3... Bg7 {[%clk 0:03:00]} 4.
Nc3 {[%clk 0:02:58.5]} 4... O-O {[%clk 0:03:00.7]} 5. e4 {[%clk 0:02:58.9]} 5...
d6 {[%clk 0:03:01.4]} 6. Be2 {[%clk 0:02:58.9]} 6... e5 {[%clk 0:03:01.9]} 7.
dxe5 {[%clk 0:02:59.2]} 7... dxe5 {[%clk 0:03:01.8]} 8. Qxd8 {[%clk 0:02:59.9]}
8... Rxd8 {[%clk 0:03:02.2]} 9. Bg5 {[%clk 0:03:00.6]} 9... c6 {[%clk
0:02:50.6]} 10. Nxe5 {[%clk 0:02:56.9]} 10... Re8 {[%clk 0:02:50.2]} 11. O-O-O
{[%clk 0:02:49.6]} 11... Na6 {[%clk 0:02:05.7]} 12. f4 {[%clk 0:02:46.5]} 12...
Nc5 {[%clk 0:01:53.5]} 13. Bf3 {[%clk 0:02:40]} 13... Ne6 {[%clk 0:01:53.6]} 14.
h4 {[%clk 0:01:23.9]} 14... h6 {[%clk 0:01:46.2]} 15. Bxf6 {[%clk 0:01:23.6]}
15... Bxf6 {[%clk 0:01:47.1]} 16. Nd3 {[%clk 0:01:23.7]} 16... Nd4 {[%clk
0:01:38.3]} 17. h5 {[%clk 0:01:22.8]} 17... g5 {[%clk 0:01:21.7]} 18. e5 {[%clk
0:01:19.1]} 18... Be7 {[%clk 0:01:21.7]} 19. Rhg1 {[%clk 0:01:12]} 19... Be6
{[%clk 0:01:16.5]} 20. b3 {[%clk 0:01:06.5]} 20... gxf4 {[%clk 0:01:05.2]} 21.
g3 {[%clk 0:01:03.3]} 21... fxg3 {[%clk 0:01:03.1]} 22. Rxg3+ {[%clk 0:01:01.9]}
22... Bg5+ {[%clk 0:01:03]} 23. Kb2 {[%clk 0:01:00.3]} 23... Nxf3 {[%clk
0:01:00.6]} 24. Rxf3 {[%clk 0:01:00.6]} 24... Bg4 {[%clk 0:01:00.7]} 25. Rdf1
{[%clk 0:00:58.5]} 25... Bxf3 {[%clk 0:01:00.4]} 26. Rxf3 {[%clk 0:00:59.4]}
26... Rad8 {[%clk 0:00:59.5]} 27. Ne4 {[%clk 0:00:59]} 27... Kg7 {[%clk
0:00:54]} 28. Kc3 {[%clk 0:00:55.5]} 28... Rxd3+ {[%clk 0:00:47.6]} 29. Kxd3
{[%clk 0:00:54.2]} 29... Rxe5 {[%clk 0:00:47.7]} 30. c5 {[%clk 0:00:51.2]} 30...
f5 {[%clk 0:00:44.7]} 31. Nd6 {[%clk 0:00:51.3]} 31... Kf6 {[%clk 0:00:30.8]}
32. b4 {[%clk 0:00:46.5]} 32... a5 {[%clk 0:00:27]} 33. a3 {[%clk 0:00:46.3]}
33... axb4 {[%clk 0:00:27.3]} 34. axb4 {[%clk 0:00:47.2]} 34... b6 {[%clk
0:00:27.6]} 35. Kd4 {[%clk 0:00:36.7]} 35... Rd5+ {[%clk 0:00:22.3]} 36. Kc4
{[%clk 0:00:36.9]} 36... b5+ {[%clk 0:00:22.6]} 37. Nxb5 {[%clk 0:00:35.8]}
37... Rd1 {[%clk 0:00:17.3]} 38. Nd4 {[%clk 0:00:34.3]} 38... Rc1+ {[%clk
0:00:15.4]} 39. Kd3 {[%clk 0:00:32.7]} 39... Rd1+ {[%clk 0:00:14.2]} 40. Kc3
{[%clk 0:00:32.7]} 40... f4 {[%clk 0:00:04]} 41. Nxc6 {[%clk 0:00:29.4]} 41...
Kf5 {[%clk 0:00:04.5]} 42. b5 {[%clk 0:00:28.9]} 42... Rc1+ {[%clk 0:00:03.2]}
43. Kb4 {[%clk 0:00:28.9]} 43... Kg4 {[%clk 0:00:03.1]} 44. Ne5+ {[%clk
0:00:25.6]} 44... Kf5 {[%clk 0:00:02.5]} 45. Ng6 {[%clk 0:00:19.4]} 45... Ke4
{[%clk 0:00:02.5]} 46. Rf2 {[%clk 0:00:18.6]} 46... f3 {[%clk 0:00:02.7]} 47. b6
{[%clk 0:00:16]} 47... Be3 {[%clk 0:00:03.1]} 48. Rb2 {[%clk 0:00:15.9]} 48...
Bxc5+ {[%clk 0:00:02.9]} 49. Kb5 {[%clk 0:00:15.4]} 49... f2 {[%clk 0:00:03]}
50. Rxf2 {[%clk 0:00:12.7]} 50... Bxf2 {[%clk 0:00:03.3]} 51. b7 {[%clk
0:00:13.6]} 51... Rb1+ {[%clk 0:00:03.5]} 52. Kc6 {[%clk 0:00:14.5]} 52... Bg3
{[%clk 0:00:04.2]} 53. Ne7 {[%clk 0:00:14.7]} 53... Kf4 {[%clk 0:00:04.3]} 54.
Ng6+ {[%clk 0:00:15.2]} 54... Kg5 {[%clk 0:00:04.5]} 55. Ne7 {[%clk 0:00:15.9]}
55... Kxh5 {[%clk 0:00:04.3]} 56. Nd5 {[%clk 0:00:16.2]} 56... Kg4 {[%clk
0:00:04.7]} 57. Ne3+ {[%clk 0:00:17.1]} 57... Kf3 {[%clk 0:00:05.2]} 58. Nf5
{[%clk 0:00:17.1]} 58... Bf4 {[%clk 0:00:05.7]} 59. Nxh6 {[%clk 0:00:16.2]}
59... Bxh6 {[%clk 0:00:05.7]} 60. Kc7 {[%clk 0:00:16.9]} 60... Bf4+ {[%clk
0:00:06.1]} 61. Kc8 {[%clk 0:00:17.8]} 61... Ke4 {[%clk 0:00:06.6]} 62. b8=Q
{[%clk 0:00:16.8]} 62... Rb7 {[%clk 0:00:06.4]} 63. Qxb7+ {[%clk 0:00:16.2]}
63... Ke3 {[%clk 0:00:03.2]} 64. Qf7 {[%clk 0:00:16.1]} 64... Kf3 {[%clk
0:00:03.5]} 65. Kd7 {[%clk 0:00:16.8]} 65... Ke4 {[%clk 0:00:04]} 66. Ke6 {[%clk
0:00:17.5]} 66... Ke3 {[%clk 0:00:04.5]} 67. Kf5 {[%clk 0:00:18.1]} 67... Bg3
{[%clk 0:00:04.9]} 68. Qd5 {[%clk 0:00:18.4]} 68... Bf2 {[%clk 0:00:05.8]} 69.
Qe4+ {[%clk 0:00:18.5]} 69... Kd2 {[%clk 0:00:04.3]} 70. Kg4 {[%clk 0:00:19]}
70... Be3 {[%clk 0:00:03.8]} 71. Kf3 {[%clk 0:00:19]} 71... Bc5 {[%clk
0:00:03.4]} 72. Qd5+ {[%clk 0:00:18.7]} 72... Bd4 {[%clk 0:00:02.6]} 73. Qxd4+
{[%clk 0:00:19]} 73... Kc2 {[%clk 0:00:03.1]} 74. Ke2 {[%clk 0:00:18.4]} 74...
Kb1 {[%clk 0:00:03.4]} 75. Qc3 {[%clk 0:00:16.7]} 75... Ka2 {[%clk 0:00:02.9]}
76. Qb4 {[%clk 0:00:17.3]} 76... Ka1 {[%clk 0:00:02.5]} 77. Kd2 {[%clk
0:00:17.9]} 1-0